Cogmind - Beta 16 @@@ ROGUE MODE // 2026.01.29 @ 13:44:08 Player: Foolatea Result: Destroyed by B-99 Colossus with Linear Accelerator Performance ------------- Evolutions (9) 4500 Regions Visited (27) 5400 Robots Destroyed (445) 2225 Value Destroyed (20423) 20423 Prototype IDs (43) 860 Alien Tech Used (0) 0 Bonus (9614) 9614 TOTAL SCORE: 43022 Bonus ------- Triggered Max Security 1000 High Alert Combat Kills 2723 Follower Combat Kills 925 Entered Garrisons 1200 Used RIF Installer 2500 Entered DSFs 1000 Aligned with FarCom 300 Friendly Fire -34 Cogmind --------- Core Integrity 0/1600 Matter 206/300 Energy 99/100 System Corruption 2% Temperature Cool (0) Movement Core (50) Location -1/Access Parts ------- > --- POWER (3) -------- (None) > --- PROPULSION (6) --- (None) > --- UTILITY (11) ----- Advanced Target Analyzer Advanced Target Analyzer Advanced Target Analyzer > --- WEAPON (5) ------- (None) > --- INVENTORY (5) ---- Advanced Targeting Computer Powered Armor Powered Armor Powered Armor Advanced Shield Generator Peak State ------------ > --- POWER ------------ Quantum Reactor Light Quantum Reactor Light Quantum Reactor > --- PROPULSION ------- Biometal Heavy Treads Biometal Heavy Treads Biometal Heavy Treads > --- UTILITY ---------- Advanced Heat Sink High-capacity Storage Unit Advanced Weapon Cycler Light Regenerative Plating Graphene Brace Advanced Force Field Experimental System Shield Relay Coupler [Grunt] Relay Coupler [Hunter] Long-range Tractor Beam > --- WEAPON ----------- Enhanced Nova Cannon Enhanced Hardcell Cannon Enhanced Hardcell Cannon Enhanced Hardcell Cannon > --- INVENTORY -------- Light Quantum Reactor Biometal Heavy Treads Biometal Heavy Treads Biometal Heavy Treads Power Amplifier Advanced Heat Sink Matter Compressor Hardened Heavy Armor Plating Advanced Force Field Relay Coupler [NC] Relay Coupler [Sentry] Enhanced Hardcell Cannon Enhanced Hardcell Cannon Micro-nuke Launcher Improved Remote Datajack Chainsword [Rating: 187] Favorites ----------- Power Light Quantum Reactor Engine Heavy Ion Engine Power Core Enhanced Nuclear Core Reactor Light Quantum Reactor Propulsion Biometal Heavy Treads Treads Biometal Heavy Treads Leg Carbon-fiber Leg Wheel Armored Wheel Hover Unit Aerolev Unit Flight Unit Improved Surge Thruster Utility High-capacity Storage Unit Device Advanced Heat Sink Storage High-capacity Storage Unit Processor Advanced Targeting Computer Hackware Relay Coupler [Grunt] Protection Light Regenerative Plating Weapon Enhanced Hardcell Cannon Energy Gun Precision Beam Rifle Energy Cannon Enhanced Nova Cannon Ballistic Gun Improved KE Penetrator Ballistic Cannon Enhanced Hardcell Cannon Launcher Mini Grenade Launcher Special Weapon Remote Datajack Impact Weapon Impact Mace Slashing Weapon Katana Piercing Weapon Lance Build | -11 -10 -9 -9 -9 -8 -8 -8 -8 -7 -7 -7 -7 -6 -6 -6 -6 -5 -5 -4 -4 -4 -4 -3 -3 -2 -2 -1 ------- Run | Yrd Mat Mat Min Exi Min Mat Gar Sto Fac Gar Fac Gar Fac Gar Fac DSF Fac Gar Fac Was Fac Gar Res DSF Res Tes Acc Slots Evolved 18 | . . 2 . . . 2 . . 2 . . . 2 . . . 2 . 2 . . . 2 . 2 . 2 Power 2 | . . . . . . . . . . . . . 1 . . . . . . . . . . . 1 . . Propulsion 4 | . . 2 . . . . . . . . . . . . . . 1 . . . . . 1 . . . . Utility 9 | . . . . . . 1 . . 2 . . . 1 . . . 1 . 1 . . . 1 . 1 . 1 Weapon 3 | . . . . . . 1 . . . . . . . . . . . . 1 . . . . . . . 1 Parts Attached 307 | 8 15 29 1 2 3 10 9 31 7 11 8 8 11 25 3 19 6 18 2 2 5 7 5 10 32 1 19 Power 37 | 1 2 4 . . . 1 1 3 1 1 1 . 1 2 1 3 . 4 . . . . . 1 7 . 3 Engine 15 | 1 2 3 . . . 1 . 2 1 . . . 1 1 . 2 . . . . . . . . . . 1 Core 9 | . . 1 . . . . 1 1 . . 1 . . 1 1 1 . 1 . . . . . . 1 . . Reactor 13 | . . . . . . . . . . 1 . . . . . . . 3 . . . . . 1 6 . 2 Propulsion 81 | 3 5 10 . . 3 4 2 11 3 2 . . 2 10 1 4 4 2 . . 1 3 2 5 2 . 2 Treads 35 | 1 . 3 . . . 3 1 7 2 2 . . 2 . . . 3 1 . . 1 1 1 3 2 . 2 Leg 30 | . 2 5 . . 1 . . 1 . . . . . 10 1 4 1 . . . . 2 1 2 . . . Wheel 13 | 2 3 2 . . 2 1 1 1 1 . . . . . . . . . . . . . . . . . . Hover 1 | . . . . . . . . 1 . . . . . . . . . . . . . . . . . . . Flight 2 | . . . . . . . . 1 . . . . . . . . . 1 . . . . . . . . . Utility 104 | 2 4 3 . 2 . 3 4 8 2 5 2 8 4 6 1 5 1 8 2 1 1 4 3 1 14 . 10 Device 38 | 1 2 1 . . . . 3 2 . 1 1 . 3 3 . 1 1 2 1 . 1 3 . 1 8 . 3 Storage 5 | 1 2 . . 1 . . . . . . . . . . . . . . . . . . . . . . 1 Processor 12 | . . 1 . . . . . . 2 1 . . 1 . . . . 1 . . . . . . 2 . 4 Hackware 28 | . . . . . . . 1 1 . 2 . 7 . 3 1 1 . 5 1 1 . 1 1 . 3 . . Protection 21 | . . 1 . 1 . 3 . 5 . 1 1 1 . . . 3 . . . . . . 2 . 1 . 2 Artifact . | . . . . . . . . . . . . . . . . . . . . . . . . . . . . Weapon 85 | 2 4 12 1 . . 2 2 9 1 3 5 . 4 7 . 7 1 4 . 1 3 . . 3 9 1 4 Energy Gun 19 | 1 . 3 . . . 1 . 4 . . . . 2 . . 2 . . . . 1 . . . 2 . 3 Energy Cannon 5 | . . . . . . . . . . 1 . . 1 . . . . . . . . . . 1 1 . 1 Ballistic Gun 27 | 1 1 5 . . . . . 3 . . 3 . 1 6 . 4 . 2 . . 1 . . . . . . Ballistic Cannon 14 | . . 1 . . . 1 1 . 1 . . . . 1 . 1 . 1 . . . . . 2 4 1 . Launcher 9 | . 2 1 . . . . 1 1 . 1 1 . . . . . . . . 1 1 . . . . . . Special Weapon 3 | . . . . . . . . . . 1 . . . . . . . 1 . . . . . . 1 . . Impact Weapon 3 | . . 2 . . . . . . . . 1 . . . . . . . . . . . . . . . . Slashing Weapon 4 | . 1 . 1 . . . . 1 . . . . . . . . 1 . . . . . . . . . . Piercing Weapon 1 | . . . . . . . . . . . . . . . . . . . . . . . . . 1 . . Special Melee Weapon . | . . . . . . . . . . . . . . . . . . . . . . . . . . . . Unidentified Prototypes 15 | . . 2 . . . . . 7 . . 2 . 1 . . 1 . . . . . . 1 . 1 . . Parts Lost 107 | . 2 3 . . 6 2 9 6 1 . 1 5 . 19 . 11 . 7 . . . 3 . 3 11 4 14 Power 17 | . . . . . . 1 1 2 . . . 1 . 3 . 3 . 1 . . . . . . 1 1 3 Propulsion 22 | . 1 . . . 4 1 3 2 1 . . 1 . 5 . 1 . . . . . 1 . . . . 2 Utility 38 | . 1 . . . 1 . 3 . . . . 1 . 5 . 2 . 6 . . . 1 . 1 9 2 6 Weapon 30 | . . 3 . . 1 . 2 2 . . 1 2 . 6 . 5 . . . . . 1 . 2 1 1 3 Highest Loss Streak 13 | . 2 1 . . 6 1 9 4 1 . 1 2 . 8 . 3 . 5 . . . 1 . 2 3 2 13 To Critical Strikes 1 | . . . . . . . . . . . . 1 . . . . . . . . . . . . . . . Average Backups 17 | 5 12 19 20 19 18 19 18 18 19 19 19 19 17 18 19 19 19 18 19 18 18 18 17 15 15 13 1 Power 1 | . 1 2 2 2 2 2 1 . 1 1 1 . 1 1 1 . . . 2 2 2 2 2 . . . . Propulsion 2 | 3 3 3 3 3 1 1 1 . . 1 2 2 . . . 2 2 3 6 6 6 4 3 3 3 2 . Utility 8 | . 3 6 7 6 5 7 8 11 12 11 12 13 12 11 11 11 10 6 5 5 5 7 7 8 6 4 1 Weapon 4 | . 3 6 8 8 7 6 6 4 5 4 3 2 3 4 5 4 6 7 5 4 4 3 3 3 4 5 . Tool/Special . | . . . . . . . . . . . . . . . . . . . . . . . . . . . . Unused Backups 67 | . 7 7 . 1 . 5 2 4 3 6 2 1 . 1 . 3 3 3 1 . 1 1 1 2 3 6 4 Power 8 | . 1 1 . . . 1 1 1 . . . . . . . . . 1 . . . . 1 . 1 . . Propulsion 16 | . 2 3 . . . 1 1 2 . . 1 . . . . . . . . . 1 1 . 2 . 2 . Utility 35 | . 3 2 . 1 . 2 . . 2 6 1 1 . . . 3 3 2 1 . . . . . 2 2 4 Weapon 7 | . 1 1 . . . 1 . 1 . . . . . 1 . . . . . . . . . . . 2 . Tool/Special 1 | . . . . . . . . . 1 . . . . . . . . . . . . . . . . . . Average Slot Usage (%) 90 | . 99 99 100 100 94 97 96 95 97 90 83 81 91 88 91 91 98 92 89 94 93 90 89 81 84 61 43 Engine 4 | . 14 10 11 11 11 8 7 6 7 4 . . 5 5 6 3 11 4 . . . . . . . . . Reactor 3 | . . . . . . . . . . 2 6 4 . . . . . 2 10 10 10 9 9 9 12 8 6 Treads 10 | . 3 5 . . . 7 9 16 15 14 14 14 19 5 . . 10 18 21 21 21 12 9 7 13 12 4 Leg 7 | . 11 22 33 33 24 9 8 . . . . . . 15 26 25 17 8 . . . 4 9 5 . . . Wheel 5 | . 12 16 11 11 15 17 16 16 12 6 . . . . . . . . . . . . . . . . . Device 8 | . 13 9 . . . 8 8 1 3 2 7 2 8 6 6 3 9 10 12 15 19 25 22 18 18 8 5 Storage 7 | . 14 11 11 11 11 9 9 9 7 7 7 7 6 6 6 6 5 5 5 5 5 5 4 4 4 3 1 Processor 5 | . . . . . . . . . 14 15 15 15 10 6 6 6 5 4 5 5 . . . . . 3 15 Hackware 6 | . . . . . . . . 8 7 2 . 8 13 11 17 14 11 8 11 15 15 10 9 14 13 7 . Protection 4 | . . 1 11 11 10 9 9 6 3 9 7 4 . 4 . 5 5 4 3 . . . 3 4 4 . 4 Energy Gun 2 | . 4 1 . . . . 2 11 1 3 2 . 5 2 . 2 . . . . 3 . . . . 5 4 Energy Cannon 1 | . . . . . . . . . . 3 2 . . 1 . . . . . . . . . . 3 . 1 Ballistic Gun 9 | . 18 9 11 11 7 17 13 8 7 8 8 14 6 9 13 10 11 11 8 10 11 10 9 5 . . . Ballistic Cannon 3 | . . 4 5 11 4 3 9 . 6 . . . . . . 2 1 . 5 5 . 2 4 6 9 1 . Impact Weapon 1 | . . 5 2 . . . . . . . 2 2 4 2 6 . . . . . . . . . . . . Slashing Weapon 2 | . 3 . 2 . . 4 . 6 5 3 3 . . . . . 3 1 5 . 3 3 3 . . . . Peak Build Rating 187 | 7 11 26 27 27 26 34 36 37 42 80 81 77 74 73 66 78 91 117 131 131 136 138 146 163 187 156 129 Average Rating 75 | 5 10 19 25 26 23 30 33 30 38 63 77 70 69 63 64 67 88 93 124 128 130 132 142 145 179 132 86 On Entrance 68 | . 7 11 25 26 27 21 33 17 34 42 79 76 56 73 61 66 78 91 117 130 129 135 132 145 160 156 2 Avg Prop Armor Cover (%) 10 | 8 10 17 15 14 11 10 10 14 14 3 . . 14 12 . . 7 7 . . 14 4 6 7 . . 7 Naked Turns 24 | . . . . . . . . . . . . . . . . . . . . . . . . . . 24 . Heaviest Build 165 | 15 52 59 59 59 59 66 74 64 69 80 81 71 79 84 66 95 96 110 114 111 111 114 120 131 165 111 126 Greatest Support 225 | 20 22 26 12 12 22 22 22 22 22 130 130 130 110 110 65 68 90 165 165 165 175 175 145 225 225 225 112 Greatest Overweight (x) 24 | 1 3 4 4 4 4 5 6 5 5 5 . . 1 24 1 1 1 1 . . 1 1 . 2 1 . 18 Average Overweight (x) 1 | . 1 2 4 4 3 2 2 2 3 . . . . . 1 . . . . . . . . . . . . Largest Inventory Capacity 20 | 8 20 20 20 20 20 20 20 20 20 20 20 20 20 20 20 20 20 20 20 20 20 20 20 20 20 20 15 Average Capacity 19 | 7 14 20 20 20 20 20 20 20 20 20 20 20 20 20 20 20 20 20 20 20 20 20 20 20 20 18 7 Most Carried 20 | 7 20 20 20 20 20 20 20 20 20 20 20 20 20 20 20 20 20 20 20 20 20 20 20 20 20 20 5 Average Carried 18 | 5 12 19 20 19 18 19 18 18 19 19 19 19 17 18 19 19 19 18 19 19 19 19 19 18 19 16 1 Final Capacity 20 | 8 20 20 20 20 20 20 20 20 20 20 20 20 20 20 20 20 20 20 20 20 20 20 20 20 20 5 5 Final Carried 20 | 7 20 20 20 20 15 20 15 20 20 20 20 18 20 20 19 20 20 20 20 20 20 19 20 20 19 4 5 Class Distribution -------------------- 29% | Mutant 20% | Bothacker-Tank 12% | Bothacker-Mutant 9% | Scavenger-Mutant 9% | Tank 5% | Scavenger-Skirmisher Dominant Class ---------------- Mutant | -10/Materials Mutant | -9/Materials Mutant | -9/Mines Mutant | -9/Exiles Mutant | -8/Mines Scavenger-Mutant | -8/Materials Skirmisher | -8/Garrison Scavenger-Mutant | -8/Storage Scavenger-Assassin | -7/Factory Bothacker-Mutant | -7/Garrison Mutant | -7/Factory Bothacker-Mutant | -7/Garrison Bothacker-Mutant | -6/Factory Bothacker-Mutant | -6/Garrison Bothacker-Mutant | -6/Factory Bothacker-Skirmisher | -6/DSF Scavenger-Mutant | -5/Factory Bothacker-Mutant | -5/Garrison Bothacker-Tank | -4/Factory Bothacker-Tank | -4/Waste Bothacker-Tank | -4/Factory Bothacker-Tank | -4/Garrison Bothacker-Tank | -3/Research Bothacker-Tank | -3/DSF Tank | -2/Research Scavenger-Tank | -2/Testing Mutant | -1/Access Resources | -11 -10 -9 -9 -9 -8 -8 -8 -8 -7 -7 -7 -7 -6 -6 -6 -6 -5 -5 -4 -4 -4 -4 -3 -3 -2 -2 -1 ----------- Run | Yrd Mat Mat Min Exi Min Mat Gar Sto Fac Gar Fac Gar Fac Gar Fac DSF Fac Gar Fac Was Fac Gar Res DSF Res Tes Acc Matter Collected 16542 | 331 530 1180 115 . 121 823 432 689 473 633 866 1066 405 903 . 815 60 524 200 . 532 1207 237 639 3629 . 132 Remotely 3263 | . . . . . . . . . . . . . . . . . . . . . . . . 435 2828 . . Salvage Created 18331 | 209 730 1694 123 . 211 925 234 1210 336 919 1257 1248 296 843 . 709 66 663 . . 690 1161 435 768 3432 40 132 Parts 953 | 10 49 86 10 . 9 67 21 65 20 41 82 71 11 35 . 27 5 34 . . 39 72 8 28 159 . 4 Haulers Intercepted 20 | . 2 3 . . . 3 . 4 . . 2 . . . . . . . . . . . 1 1 3 . 1 Recyclers Shooed 12 | . 1 3 . . . 1 . . . . 1 . . . . . . . . . 2 . . . 4 . . Parts Field Recycled . | . . . . . . . . . . . . . . . . . . . . . . . . . . . . Retrieved Matter . | . . . . . . . . . . . . . . . . . . . . . . . . . . . . Parts Self-Destructed . | . . . . . . . . . . . . . . . . . . . . . . . . . . . . Prevented . | . . . . . . . . . . . . . . . . . . . . . . . . . . . . Parts Restored . | . . . . . . . . . . . . . . . . . . . . . . . . . . . . Kills | -11 -10 -9 -9 -9 -8 -8 -8 -8 -7 -7 -7 -7 -6 -6 -6 -6 -5 -5 -4 -4 -4 -4 -3 -3 -2 -2 -1 ------- Run | Yrd Mat Mat Min Exi Min Mat Gar Sto Fac Gar Fac Gar Fac Gar Fac DSF Fac Gar Fac Was Fac Gar Res DSF Res Tes Acc Combat Hostiles Destroyed 338 | . 17 27 6 . 7 12 16 19 6 27 16 30 8 21 . 10 . 16 . . 5 36 4 10 45 . . Melee 2 | . . . . . . . . 1 . . . . . . . . . . . . . . . . 1 . . Guns 156 | . 9 12 . . 2 7 4 16 2 5 12 23 5 14 . 6 . 15 . . 5 16 1 1 1 . . Cannons 84 | . . 4 3 . . 3 6 . 4 4 4 . . . . 4 . . . . . 8 . 5 39 . . AOE 86 | . 8 11 3 . 5 2 6 1 . 17 . 5 3 7 . . . 1 . . . 12 . 3 2 . . Classes Destroyed 22 | 3 5 2 . . 1 1 . 1 1 2 . 1 1 1 . 1 1 1 . . . . . . . . . Worker 26 | 2 1 2 1 . 1 1 . 2 3 . 1 . 2 . . . 1 . . . 1 . . . 7 . 1 Builder 16 | . 2 1 . . . 1 . 2 . . 5 . . . . . . . . . 2 . . . 3 . . Tunneler 7 | 4 . 1 . . 1 1 . . . . . . . . . . . . . . . . . . . . . Hauler 20 | . 2 3 . . . 3 . 4 . . 2 . . . . . . . . . . . 1 1 3 . 1 Recycler 28 | 1 2 10 . . . 2 . 1 1 . 3 . . . . . . . . . 2 . . . 6 . . Mechanic 1 | . . . . . . . . . . . . . . . . . 1 . . . . . . . . . . Operator 4 | . . . . . . 2 . . . . 1 . . . . . . . . . . . . . . 1 . Watcher 4 | . 1 . . . . 1 . 1 . 1 . . . . . . . . . . . . . . . . . Swarmer 100 | . 3 10 4 . . . 11 2 . 10 2 11 . 5 . . . 4 . . . 28 . 6 4 . . Cutter 3 | . . . . . . . . . . . . . . . . . . 3 . . . . . . . . . Saboteur 4 | . . . . . . . . . . 1 . . . . . . . . . . . 3 . . . . . Grunt 117 | . 14 11 2 . 6 6 3 5 2 14 8 7 6 9 . 6 . 6 . . . 2 3 . 7 . . Brawler 5 | . . . . . . . . 2 . . . 1 . . . . . 1 . . . . . . 1 . . Duelist 7 | . . 1 . . . . . 1 . 1 1 1 . . . 1 . 1 . . . . . . . . . Protector 1 | . . . . . . . . . . . . . 1 . . . . . . . . . . . . . . Sentry 38 | . . 5 . . . 6 2 9 2 . 2 3 . 1 . . . . . . 2 2 1 . 3 . . Demolisher 2 | . . . . . . . . . . . . 1 . 1 . . . . . . . . . . . . . Specialist 7 | . . . . . . . . . . 1 . 1 . 1 . 1 . . . . . . . 1 2 . . Hunter 11 | . . . . . 1 . . . . . . 1 . 2 . . . . . . . . . 2 5 . . Programmer 39 | . . . . . . . . . 2 . 3 4 1 1 . 1 . 1 . . 3 . . . 23 . . Heavy 3 | . . . . . . . . . . . . . . . . 2 . . . . . . . 1 . . . Behemoth 2 | . . . . . . . . . . . . . . 1 . . . . . . . 1 . . . . . Best Kill Streak 13 | 2 5 6 5 . 4 4 4 3 2 13 3 6 6 5 . 3 1 7 . . 4 10 3 7 11 1 1 Combat Bots Only 13 | . 5 5 4 . 3 3 4 3 2 13 3 6 6 5 . 3 . 7 . . 2 10 3 7 7 . . Max Kills in Single Turn 3 | 1 3 3 3 . 3 2 2 2 1 3 2 3 3 2 . 1 1 2 . . 2 3 1 2 2 1 1 Gunslinging 1 | . . . . . . . . . . . 1 1 . . . . . 1 . . . . . . . . . Exploded 3 | . 2 2 3 . 2 2 2 1 . 3 . 3 3 2 . . . 1 . . . 3 . 2 1 . . Melee 1 | . . . . . . . . 1 . . . . . . . . . . . . . . . . 1 . . Uniques/NPCs Destroyed . | . . . . . . . . . . . . . . . . . . . . . . . . . . . . Combat | -11 -10 -9 -9 -9 -8 -8 -8 -8 -7 -7 -7 -7 -6 -6 -6 -6 -5 -5 -4 -4 -4 -4 -3 -3 -2 -2 -1 -------- Run | Yrd Mat Mat Min Exi Min Mat Gar Sto Fac Gar Fac Gar Fac Gar Fac DSF Fac Gar Fac Was Fac Gar Res DSF Res Tes Acc Hostile Shots Fired 2507 | . 75 123 8 . 34 45 123 101 104 88 112 194 52 243 15 100 . 86 . . 26 168 10 143 313 81 263 Missed 713 | . 22 36 3 . 5 12 35 29 35 26 50 57 11 62 6 31 . 21 . . 10 44 3 51 54 26 84 Hits 1794 | . 53 87 5 . 29 33 88 72 69 62 62 137 41 181 9 69 . 65 . . 16 124 7 92 259 55 179 Melee 30 | . . 1 . . . . . 2 . . 3 7 . . . . . 14 . . . . . . . 2 1 Projectile 1764 | . 53 86 5 . 29 33 88 70 69 62 59 130 41 181 9 69 . 51 . . 16 124 7 92 259 53 178 AOE 19 | . . . . . . . . . 1 . . 7 . 8 . . . 3 . . . . . . . . . Critical Strikes 68 | . 1 4 . . 1 1 1 1 1 2 2 5 1 6 . 3 . 4 . . 1 3 . . 18 6 7 Actively Blocked 26 | . . . . . . . . . . . . . . . . . . . . . 1 3 . . 18 4 . Part Disruptions 5 | . . . . . . . . . . . . . . 1 . . . . . . 1 . . . 3 . . Damage Taken 30029 | . 652 1107 42 . 518 516 1189 1111 629 1115 950 2153 508 3005 57 1695 . 1459 . . 252 1689 113 1226 4665 1333 4045 Core 4475 | . 174 110 . . 30 58 103 171 99 28 68 194 23 399 17 160 . 133 . . 24 159 . 41 394 490 1600 Absorbed by Shields 3303 | . . . . . . . 155 . . . . . 161 185 . 45 . 25 . . 96 618 42 355 1621 . . Reduced by Siege Mode 980 | . . . . . . . . . . . . 160 17 80 . . . . . . 9 105 5 136 419 . 49 Redirected to Shielding 105 | . . . . . . . . . . . . . . . . . . . . . . . . 85 20 . . Regen/Repaired (Parts) 2109 | . . . . . . . . 111 129 218 499 129 594 4 . . . 71 . . . . . 14 340 . . Core Remaining (%) 61 | 100 30 . . . 65 . . 39 . . . 44 . . . 29 . 86 . . . 84 . 96 . 39 . Volleys Fired 1190 | 17 73 85 8 . 18 64 32 70 29 52 83 106 16 84 . 47 . 48 . 6 30 73 9 35 180 10 15 Largest 4 | 2 2 2 2 . 2 3 3 3 3 3 3 3 3 3 . 3 . 3 . 1 4 4 4 4 4 2 4 Hottest 361 | 70 70 60 60 . 67 109 126 147 126 167 167 81 111 160 . 155 . 99 . 7 164 164 167 236 294 163 361 Shots Fired 2430 | 34 142 153 12 . 27 169 70 144 61 99 171 217 28 165 . 95 . 92 . 6 74 156 22 77 383 9 24 Gun 1567 | 34 134 122 5 . 12 132 42 143 32 57 130 185 22 133 . 67 . 78 . . 70 110 12 20 12 2 13 Cannon 643 | . . 20 6 . 7 36 20 . 29 23 27 . . 15 . 16 . 4 . . . 19 6 45 352 7 11 Launcher 102 | . 8 11 1 . 8 1 8 1 . 15 . 7 3 7 . 2 . . . . . 21 4 4 1 . . Special 118 | . . . . . . . . . . 4 14 25 3 10 . 10 . 10 . 6 4 6 . 8 18 . . Kinetic 1659 | 17 100 124 11 . 19 157 58 42 53 41 101 185 15 94 . 64 . 82 . . 48 121 18 58 244 7 . Thermal 444 | 17 34 . . . . 11 4 101 8 17 29 . . 33 . 19 . . . . 22 8 . 7 109 1 24 Explosive 60 | . 8 11 1 . 8 1 8 1 . 9 . . 3 7 . 2 . . . . . . . . 1 . . Electromagnetic 149 | . . 18 . . . . . . . 28 27 7 7 21 . . . . . . . 21 4 4 11 1 . Robot Hit Streak 27 | 5 10 10 4 . 13 21 12 12 10 15 16 21 14 15 . 13 . 9 . 8 10 27 5 6 14 4 12 Robot Miss Streak 7 | 2 3 3 1 . 3 3 3 4 2 5 3 5 3 3 . 4 . 3 . . 3 6 2 3 7 . 1 Penetration Max 1 | . . . . . . . . . . . . 1 1 1 . . . 1 . . 1 . 1 . . . . Secondary Targets 15 | . 1 . . . . . . . . 1 1 5 1 . . . . 4 . . . 2 . . . . . Max Gunslinging Chain 1 | . 1 . . . . . . . . 1 1 1 1 . . . . 1 . . . 1 . . . . . Shots Hit Robots 1498 | 22 90 97 5 . 19 100 31 106 44 53 114 150 23 116 . 59 2 55 . 6 47 89 16 47 193 2 12 Core Hits 731 | 7 43 59 7 . 18 41 21 47 16 40 49 56 31 52 . 25 1 23 . . 23 53 11 18 84 1 5 Critical Kills 17 | . . 1 . . . . . . . . . 2 . 1 . 1 . 1 . . 1 3 2 2 2 . 1 Critical Parts Destroyed 19 | . 1 2 . . . . 1 . . . 2 3 . . . 3 . 2 . . 3 1 . 1 . . . Critical Strikes 85 | 2 4 4 . . . 2 4 4 2 2 8 5 . 1 . 4 . 3 . . 4 7 6 4 17 1 1 Burn 18 | 2 3 . . . . . . 3 2 2 5 . . . . . . . . . . . . . . 1 . Meltdown 3 | . . . . . . . . . . . . . . . . . . . . . . . . 1 2 . . Destroy 33 | . 1 1 . . . . 1 . . . 1 4 . 1 . 4 . 3 . . 4 7 3 2 . . 1 Blast 22 | . . . . . . 2 3 . . . . . . . . . . . . . . . 2 1 14 . . Corrupt 3 | . . 1 . . . . . . . . 1 . . . . . . . . . . . . . 1 . . Smash 4 | . . 2 . . . . . . . . 1 1 . . . . . . . . . . . . . . . Sever 2 | . . . . . . . . 1 . . . . . . . . . . . . . . 1 . . . . Melee Attacks 258 | . 1 33 1 . . 7 . 30 17 20 53 11 13 12 1 . 10 6 . . 4 12 10 . 13 4 . Impact 86 | . . 28 1 . . . . . . . 20 11 13 12 1 . . . . . . . . . . . . Slashing 164 | . 1 5 . . . 7 . 30 17 20 33 . . . . . 10 6 . . 4 12 10 . 9 . . Piercing 8 | . . . . . . . . . . . . . . . . . . . . . . . . . 4 4 . Sneak Attacks 35 | . 1 8 1 . . . . 4 4 . 9 . 1 . . . 2 . . . 2 . 1 . 2 . . Combat Hostiles . | . . . . . . . . . . . . . . . . . . . . . . . . . . . . Follow-up Attacks 1 | . . . . . . . . 1 . . . . . . . . . . . . . . . . . . . Damage Inflicted 45722 | 270 1875 2879 239 . 940 1996 1249 2044 1175 2331 2755 3085 1219 3097 . 1487 163 1355 . . 1476 3260 1004 2079 9254 72 418 Guns 19119 | 270 988 1059 15 . 113 1226 307 1582 412 500 1481 2617 377 1828 . 988 . 1355 . . 1245 1713 235 316 202 63 227 Cannons 13990 | . . 286 70 . 116 600 345 . 497 413 381 . . 264 . 388 . . . . . 444 141 1337 8535 . 173 Explosions 9567 | . 840 1033 95 . 711 170 597 62 . 1418 . 395 786 1005 . 107 . . . . 42 1103 526 426 251 . . Melee 2980 | . 47 501 59 . . . . 400 266 . 893 73 56 . . . 163 . . . 189 . 102 . 231 . . Ramming 66 | . . . . . . . . . . . . . . . . 4 . . . . . . . . 35 9 18 Kinetic 24600 | 109 677 1198 85 . 229 1738 585 421 799 338 1038 2617 272 1397 . 1104 . 1355 . . 814 2034 376 1440 5974 . . Thermal 7440 | 161 311 . . . 98 88 67 1161 110 255 443 96 46 394 . 272 . . . . 431 164 . 213 2703 27 400 Explosive 6435 | . 840 1033 95 . 613 170 597 62 . 1038 . . 740 1005 . 107 . . . . . . . . 135 . . Electromagnetic 4201 | . . 147 . . . . . . . 700 381 299 105 301 . . . . . . 42 1062 526 426 176 36 . Impact 1076 | . . 479 59 . . . . . . . 409 73 56 . . . . . . . . . . . . . . Slashing 1831 | . 47 22 . . . . . 400 266 . 484 . . . . . 163 . . . 189 . 102 . 158 . . Piercing 73 | . . . . . . . . . . . . . . . . . . . . . . . . . 73 . . Highest Corruption 31 | . . . . . . 4 4 8 . . 3 19 1 5 5 5 . 10 . 10 12 12 . . 30 31 2 Average Corruption 8 | . . . . . . 3 4 6 . . 1 10 1 4 5 5 . 7 . 6 10 12 . . 14 30 1 Corruption Purged . | . . . . . . . . . . . . . . . . . . . . . . . . . . . . Corruption Blocked . | . . . . . . . . . . . . . . . . . . . . . . . . . . . . Effects 484 | . . . . . . 1 8 45 . . 20 62 2 43 4 21 . 35 . 5 30 59 . . 131 18 . Message Errors 106 | . . . . . . . . 16 . . 3 11 1 6 1 3 . 5 . 3 11 14 . . 27 5 . Matter Fused 110 | . . . . . . . 2 13 . . 2 11 1 14 1 3 . 9 . 1 2 16 . . 33 2 . Heat Flow Errors 56 | . . . . . . . 2 2 . . 3 13 . 8 1 3 . 2 . 1 3 6 . . 9 3 . Energy Discharges 58 | . . . . . . 1 1 1 . . 7 3 . 7 1 5 . 7 . . 3 5 . . 17 . . Parts Rejected 7 | . . . . . . . 1 1 . . . . . 1 . . . 1 . . . 1 . . 1 1 . Parts Fused 4 | . . . . . . . . 1 . . . 1 . . . . . . . . . 2 . . . . . Data Loss (minor) 49 | . . . . . . . . 5 . . 2 8 . 5 . 1 . 3 . . 2 4 . . 17 2 . Data Loss (major) 18 | . . . . . . . 1 1 . . 1 3 . . . 3 . . . . 4 2 . . 3 . . Misfires 23 | . . . . . . . . 2 . . 1 5 . 1 . 1 . 3 . . 1 1 . . 8 . . Alerts 15 | . . . . . . . . 2 . . . 5 . . . 2 . . . . 1 1 . . 4 . . Misdirections 9 | . . . . . . . . . . . . 1 . . . . . 1 . . . . . . 4 3 . Weapon Failures 29 | . . . . . . . 1 1 . . 1 1 . 1 . . . 4 . . 3 7 . . 8 2 . Overload Shots . | . . . . . . . . . . . . . . . . . . . . . . . . . . . . Overflow Damage 1814 | . 70 344 20 . . 29 69 22 55 9 307 76 16 12 . . 36 . . . 36 97 8 145 463 . . Projectiles 715 | . . 8 . . . 9 . . 12 9 . . . . . . . . . . . 95 8 143 431 . . Explosions 213 | . 48 26 1 . . 20 69 . . . . 33 . 12 . . . . . . . 2 . 2 . . . Melee 886 | . 22 310 19 . . . . 22 43 . 307 43 16 . . . 36 . . . 36 . . . 32 . . Knockbacks 65 | . . 4 1 . 1 4 1 . 2 . . . 1 . . 3 . . . . . 3 1 2 42 . . Impact 3 | . . 1 1 . . . . . . . . . 1 . . . . . . . . . . . . . . Kinetic 56 | . . 2 . . 1 4 1 . 2 . . . . . . 3 . . . . . 2 1 2 38 . . Secondary 6 | . . 1 . . . . . . . . . . . . . . . . . . . 1 . . 4 . . Self-Inflicted Damage 612 | . 62 77 . . 39 27 27 49 . 21 . 156 . 31 . 46 . . . . 22 7 . . 36 4 8 Shots 26 | . 3 2 . . 2 1 2 1 . 1 . 8 . 2 . 1 . . . . 1 1 . . 1 . . Rammed 9 | . . . . . . . . . . . . . . . . . . . . . . . . . 2 2 5 Targets Rammed 10 | . . . . . . . . . . . . . . . . 1 . . . . . . . . 2 2 5 Kicked 1 | . . . . . . . . . . . . . . . . 1 . . . . . . . . . . . Crushed . | . . . . . . . . . . . . . . . . . . . . . . . . . . . . Highest Temperature 984 | 27 299 44 12 . 51 177 265 471 279 246 453 228 139 308 135 270 . 246 . 215 206 372 84 152 984 209 659 Average Temperature 113 | 10 60 13 6 . 16 37 80 125 81 98 100 78 67 88 76 60 . 80 . 118 59 95 40 65 208 63 210 Received Heat Transfer 4834 | . 333 369 . . 189 216 162 342 183 288 228 390 171 375 6 258 . 372 . . . 84 27 . 139 243 459 Effects 156 | . . . . . . . 1 5 . . 7 . . 2 . . . . . . . 3 . . 111 . 27 Shutdowns 62 | . . . . . . . . 4 . . 2 . . . . . . . . . . . . . 47 . 9 Energy Bleed 23 | . . . . . . . . . . . 1 . . 2 . . . . . . . 1 . . 16 . 3 Interference 21 | . . . . . . . 1 . . . 3 . . . . . . . . . . 2 . . 14 . 1 Matter Decay 9 | . . . . . . . . 1 . . 1 . . . . . . . . . . . . . 5 . 2 Short Circuit 11 | . . . . . . . . . . . . . . . . . . . . . . . . . 9 . 2 Damage (minor) 10 | . . . . . . . . . . . . . . . . . . . . . . . . . 7 . 3 Damage (major) 19 | . . . . . . . . . . . . . . . . . . . . . . . . . 12 . 7 Damage (core) 1 | . . . . . . . . . . . . . . . . . . . . . . . . . 1 . . Siege Activations 39 | . . . . . . . . . . . . 7 2 4 . . . . . . 2 4 1 2 16 . 1 Total Turns 840 | . . . . . . . . . . . . 157 26 85 . . . . . . 19 88 5 42 407 . 11 Longest Duration 76 | . . . . . . . . . . . . 47 13 52 . . . . . . 10 49 5 35 76 . 11 Martial Activations . | . . . . . . . . . . . . . . . . . . . . . . . . . . . . Shielding Activations . | . . . . . . . . . . . . . . . . . . . . . . . . . . . . Robots Disrupted . | . . . . . . . . . . . . . . . . . . . . . . . . . . . . Combat Hostiles . | . . . . . . . . . . . . . . . . . . . . . . . . . . . . Robots Corrupted 8 | . . 1 . . . . . . . 1 . 2 . . . . . . . . . . 3 . . 1 . Combat Hostiles 6 | . . . . . . . . . . 1 . 2 . . . . . . . . . . 3 . . . . Parts Fried 22 | . . 6 . . . . . . . 2 2 2 . . . . . . . . . 4 4 . . 2 . Impact Corruptions 15 | . . 7 1 . . . . . . . 3 2 1 . . . . . . . . 1 . . . . . Robots Melted 5 | . . . . . . . . 1 . . . . . . . . . . . . . . . 1 3 . . Combat Hostiles 4 | . . . . . . . . 1 . . . . . . . . . . . . . . . 1 2 . . Parts Melted 28 | 2 5 . . . . . 1 5 1 . 4 . . . . . . . . . 3 . . 2 5 . . Heat Transferred 12348 | 629 1147 . . . 100 185 148 2775 370 581 1295 50 50 740 . 600 . . . . 481 198 . 185 2259 111 444 Parts Sabotaged 1 | . . . . . . . . . . . . . . . . . . . . . . . . . . . 1 Parts Stolen . | . . . . . . . . . . . . . . . . . . . . . . . . . . . . Parts Stripped . | . . . . . . . . . . . . . . . . . . . . . . . . . . . . Power Chain Reactions 9 | . . . . . . . . . . 2 . 3 1 . . . . . . . 1 1 . . 1 . . Alert | -11 -10 -9 -9 -9 -8 -8 -8 -8 -7 -7 -7 -7 -6 -6 -6 -6 -5 -5 -4 -4 -4 -4 -3 -3 -2 -2 -1 ------- Run | Yrd Mat Mat Min Exi Min Mat Gar Sto Fac Gar Fac Gar Fac Gar Fac DSF Fac Gar Fac Was Fac Gar Res DSF Res Tes Acc Maximum Alert Level 5 | . . 2 1 . . . 2 1 . 4 2 4 3 4 3 2 1 2 1 . . 3 2 2 3 5 4 Low Security (%) 35 | 100 100 71 93 . 100 100 32 . 100 20 . . . . . . 87 36 . 100 100 27 . . . . . Level 1 19 | . . 24 6 . . . 26 100 . 9 25 . . . . 66 12 29 100 . . 14 7 76 39 . . Level 2 26 | . . 3 . . . . 40 . . 20 74 26 75 41 86 33 . 33 . . . 29 92 23 38 . 1 Level 3 13 | . . . . . . . . . . 41 . 36 24 30 13 . . . . . . 28 . . 22 . 95 Level 4 4 | . . . . . . . . . . 6 . 36 . 28 . . . . . . . . . . . . 2 Level 5 . | . . . . . . . . . . . . . . . . . . . . . . . . . . . . High Security . | . . . . . . . . . . . . . . . . . . . . . . . . . . . . Max Security . | . . . . . . . . . . . . . . . . . . . . . . . . . . 99 . Sterilizations 2 | . . . . . . . . . . . . . . . . 1 . . . . . . . 1 . . . Peak Influence 1656 | 5 176 455 229 . 94 109 500 396 158 1166 620 1520 798 1349 707 575 301 539 282 74 83 904 508 592 1046 1656 1100 Initial 1100 | . . 28 177 . . 8 58 228 158 44 611 431 798 450 707 345 301 . 282 74 2 46 508 282 333 586 1100 Average 410 | 1 109 146 81 . 27 31 293 306 28 660 466 944 645 844 572 396 53 270 248 41 15 470 453 362 497 1622 928 Influence Increases 13446 | 35 583 946 207 . 330 488 502 738 250 1182 1080 1219 246 1109 6 360 46 629 . . 213 908 139 340 1603 91 196 Destroy 0b10 Robot/C 6750 | . 340 540 140 . 200 240 320 380 120 560 560 700 140 460 . 200 . 320 . . 75 555 60 150 690 . . Destroy 0b10 Robot/NC 535 | 35 40 85 5 . 10 55 . 50 20 5 80 5 15 . . . 10 . . . 20 . 4 4 80 4 8 Destroy Leader 1268 | . 86 126 20 . 40 88 20 150 40 40 156 30 30 70 . 60 . 40 . . 24 40 16 24 166 . 2 Allied During Kill 211 | . . . 10 . 15 . . . . 42 79 5 . 9 . 2 . 4 . . . 12 . 24 9 . . Successful Hack 352 | . 5 13 . . . 17 . 32 35 12 51 . 18 . 5 . 20 14 . . . 22 5 . 103 . . Select Force Hacks 30 | . . . . . . . . 30 . . . . . . . . . . . . . . . . . . . Disable Machine 549 | . 30 60 30 . 15 30 . 60 15 45 75 15 15 . . 15 . . . . 36 12 36 12 48 . . Anti-Garrison Action 1702 | . . . . . . . 100 . . 350 . 400 . 450 . . . 213 . . . 189 . . . . . Destroy Structure 1470 | . 52 122 2 . 50 28 62 21 20 113 79 64 28 75 1 23 16 38 . . 34 78 18 18 483 27 18 Partial Spotted 24 | . . . . . . . . . . . . . . . . . . . . . 24 . . . . . . Lose Combat Pursuer 555 | . 30 . . . . 30 . 15 . 15 . . . 45 . 60 . . . . . . . 108 24 60 168 Influence Decreases 13748 | 35 514 560 662 . 308 420 122 860 534 80 1629 316 1122 404 862 278 621 90 327 208 150 71 666 125 1152 497 1135 Entered New Map 5824 | . . 41 278 . . 14 32 242 190 20 555 186 722 194 642 148 274 . 257 138 2 21 396 95 259 457 661 Time Decay 5834 | 35 494 489 364 . 228 396 . 538 344 . 694 . 380 . 70 . 197 . 70 70 148 . 270 . 713 . 334 Lost Part 1043 | . 20 30 . . 53 10 90 60 . . 10 50 . 190 . 110 . 70 . . . 30 . 30 110 40 140 Lost Ally 447 | . . . 20 . 27 . . 20 . 60 70 80 20 20 . 20 . 20 . . . 20 . . 70 . . Purge Threat 600 | . . . . . . . . . . . 300 . . . 150 . 150 . . . . . . . . . . Squads Dispatched 73 | . 4 3 . . . 2 . 5 2 . 12 . 5 . . 3 1 . . . 2 . 1 1 17 12 3 Investigation 8 | . 2 1 . . . . . 1 . . 1 . 1 . . . . . . . . . . . 2 . . Extermination 23 | . . . . . . . . . 2 . 6 . 1 . . . 1 . . . 2 . . . 10 . 1 Reinforcement 19 | . 2 2 . . . 2 . 1 . . 3 . 1 . . 3 . . . . . . . 1 4 . . Assault 20 | . . . . . . . . . . . 2 . 2 . . . . . . . . . 1 . 1 12 2 Garrison 3 | . . . . . . . . 3 . . . . . . . . . . . . . . . . . . . Intercept . | . . . . . . . . . . . . . . . . . . . . . . . . . . . . Searches Triggered . | . . . . . . . . . . . . . . . . . . . . . . . . . . . . Construction Impeded 2 | . . . . . . 1 . . . . 1 . . . . . . . . . . . . . . . . Haulers Reinforced 2 | . . . . . . . . . . . 1 . . . . . . . . . . . . . 1 . . Active Scanning Responses . | . . . . . . . . . . . . . . . . . . . . . . . . . . . . Cargo Convoy Interrupts . | . . . . . . . . . . . . . . . . . . . . . . . . . . . . Stealth | -11 -10 -9 -9 -9 -8 -8 -8 -8 -7 -7 -7 -7 -6 -6 -6 -6 -5 -5 -4 -4 -4 -4 -3 -3 -2 -2 -1 --------- Run | Yrd Mat Mat Min Exi Min Mat Gar Sto Fac Gar Fac Gar Fac Gar Fac DSF Fac Gar Fac Was Fac Gar Res DSF Res Tes Acc Distress Signals 22 | . 2 3 . . . 2 . 5 . . 2 . . . . . . . . . . . . . 6 . 2 Communications Jammed 43 | . . . . . . . . . . . . 12 2 . . . . . . . 5 . 4 . 20 . . Distress Signals 42 | . . . . . . . . . . . . 12 2 . . . . . . . 4 . 4 . 20 . . Times Spotted 567 | . 32 42 6 . 10 26 21 27 9 31 32 42 11 40 1 20 . 18 . 4 8 35 8 18 76 21 29 Peak Tracking Total 19 | . 5 6 4 . 3 3 10 4 2 11 3 6 6 5 1 4 . 5 . 1 2 11 4 8 6 12 19 Tactical Retreats 19 | . 1 . . . . 1 . 1 . 1 . . . 2 . 4 . . . . . . . 2 2 2 3 Traps | -11 -10 -9 -9 -9 -8 -8 -8 -8 -7 -7 -7 -7 -6 -6 -6 -6 -5 -5 -4 -4 -4 -4 -3 -3 -2 -2 -1 ------- Run | Yrd Mat Mat Min Exi Min Mat Gar Sto Fac Gar Fac Gar Fac Gar Fac DSF Fac Gar Fac Was Fac Gar Res DSF Res Tes Acc Traps Triggered 38 | . 2 . . . . 2 1 . . . 4 3 . 6 . 3 1 2 1 . 1 6 . 1 3 1 1 Indirectly 4 | . . . . . . . . . . . . 1 . . . . . . . . . 3 . . . . . Trap Hack Attempts . | . . . . . . . . . . . . . . . . . . . . . . . . . . . . Triggered . | . . . . . . . . . . . . . . . . . . . . . . . . . . . . Disarmed . | . . . . . . . . . . . . . . . . . . . . . . . . . . . . Reprogrammed . | . . . . . . . . . . . . . . . . . . . . . . . . . . . . Reused . | . . . . . . . . . . . . . . . . . . . . . . . . . . . . Traps Extracted . | . . . . . . . . . . . . . . . . . . . . . . . . . . . . Installed . | . . . . . . . . . . . . . . . . . . . . . . . . . . . . Triggered . | . . . . . . . . . . . . . . . . . . . . . . . . . . . . Machines | -11 -10 -9 -9 -9 -8 -8 -8 -8 -7 -7 -7 -7 -6 -6 -6 -6 -5 -5 -4 -4 -4 -4 -3 -3 -2 -2 -1 ---------- Run | Yrd Mat Mat Min Exi Min Mat Gar Sto Fac Gar Fac Gar Fac Gar Fac DSF Fac Gar Fac Was Fac Gar Res DSF Res Tes Acc Machines Disabled 60 | . 2 4 2 . 1 2 1 4 1 6 5 7 1 4 . 1 . 4 . . 3 4 3 1 4 . . Max in Single Turn 2 | . 1 2 2 . 1 1 1 1 1 1 . 2 1 1 . 1 . 1 . . 1 1 1 1 1 . . Garrison Access 1 | . . . . . . . . 1 . . . . . . . . . . . . . . . . . . . Garrison Relay 20 | . . . . . . . 1 . . 3 . 6 . 4 . . . 3 . . . 3 . . . . . Machines Repaired . | . . . . . . . . . . . . . . . . . . . . . . . . . . . . Machines Dismantled . | . . . . . . . . . . . . . . . . . . . . . . . . . . . . Machines Sabotaged . | . . . . . . . . . . . . . . . . . . . . . . . . . . . . Overloaded Fab Kills . | . . . . . . . . . . . . . . . . . . . . . . . . . . . . Hacking | -11 -10 -9 -9 -9 -8 -8 -8 -8 -7 -7 -7 -7 -6 -6 -6 -6 -5 -5 -4 -4 -4 -4 -3 -3 -2 -2 -1 --------- Run | Yrd Mat Mat Min Exi Min Mat Gar Sto Fac Gar Fac Gar Fac Gar Fac DSF Fac Gar Fac Was Fac Gar Res DSF Res Tes Acc Machines Accessed 110 | . 5 7 1 1 1 6 2 14 11 2 18 2 6 1 2 . 5 2 1 . 3 2 4 . 13 . 1 Terminals 80 | . 5 6 1 . 1 5 2 11 6 2 12 2 3 1 2 . 1 2 . . 2 2 4 . 9 . 1 Fabricators 2 | . . . . . . . . . 1 . . . . . . . 1 . . . . . . . . . . Repair Stations 12 | . . . . . . . . 1 1 . 3 . 2 . . . 1 . 1 . . . . . 3 . . Recycling Units 1 | . . . . . . . . 1 . . . . . . . . . . . . . . . . . . . Scanalyzers 7 | . . 1 . . . . . . 2 . 2 . . . . . 1 . . . . . . . 1 . . Garrison Access 7 | . . . . . . 1 . 1 1 . 1 . 1 . . . 1 . . . 1 . . . . . . Total Hacks 267 | . 10 22 3 1 2 20 6 34 30 2 34 3 19 2 4 . 18 6 1 . 5 3 8 . 32 . 2 Successful 130 | . 4 9 . 1 1 13 . 22 20 2 15 1 12 . 2 . 10 2 . . 4 2 2 . 8 . . Failed 135 | . 6 12 3 . 1 7 6 12 9 . 19 2 7 2 2 . 8 4 1 . 1 1 6 . 24 . 2 Catastrophic 31 | . 1 4 . . . 1 2 1 . . 5 1 1 1 1 . 1 2 1 . 1 . 1 . 7 . . Database Lockouts 2 | . . 1 . . . . . . 1 . . . . . . . . . . . . . . . . . . Manual 95 | . 3 12 3 1 1 15 . 10 10 . 8 . 7 . . . 9 2 . . 1 . 3 . 8 . 2 Terminals 204 | . 10 20 3 . 2 19 6 28 16 2 24 3 10 2 4 . 8 6 . . 4 3 8 . 24 . 2 Fabricators 5 | . . . . . . . . . 1 . . . . . . . 4 . . . . . . . . . . Repair Stations 33 | . . . . . . . . 3 7 . 6 . 7 . . . 3 . 1 . . . . . 6 . . Recycling Units 2 | . . . . . . . . 2 . . . . . . . . . . . . . . . . . . . Scanalyzers 13 | . . 2 . . . . . . 5 . 3 . . . . . 1 . . . . . . . 2 . . Garrison Access 9 | . . . . . . 1 . 1 1 . 1 . 2 . . . 2 . . . 1 . . . . . . Terminal Hacks 72 | . 4 7 . 1 1 7 . 14 4 2 9 1 5 . 2 . 4 2 . . 3 2 1 . 3 . . Record 8 | . . 1 . . . . . . 1 . . . 1 . . . 3 . . . 2 . . . . . . Part Schematic 1 | . . . . . . . . 1 . . . . . . . . . . . . . . . . . . . Robot Schematic 1 | . . . . . . . . . . . . . 1 . . . . . . . . . . . . . . Prototype ID Bank 3 | . 2 . . . . 1 . . . . . . . . . . . . . . . . . . . . . Open Door 4 | . . . . . . . . 4 . . . . . . . . . . . . . . . . . . . Open DSF 5 | . . . . . . . . . . . 1 . . . 1 . . . . . 1 . 1 . 1 . . Level Access Points 1 | . . . . . . . . . 1 . . . . . . . . . . . . . . . . . . Branch Access Points 2 | . . . . . . 2 . . . . . . . . . . . . . . . . . . . . . Emergency Access Points 4 | . . . . . . . . . . 1 . 1 . . . . . 1 . . . 1 . . . . . Terminal Index 5 | . . 1 . . . 1 . 1 . . 2 . . . . . . . . . . . . . . . . Fabricator Index 1 | . . . . . . . . 1 . . . . . . . . . . . . . . . . . . . Scanalyzer Index 1 | . . . . . . . . . 1 . . . . . . . . . . . . . . . . . . Alert Level 5 | . 2 2 . . 1 . . . . . . . . . . . . . . . . . . . . . . Unreport Threat 4 | . . . . . . . . . . . 2 . . . 1 . 1 . . . . . . . . . . Locate Traps 8 | . . 1 . . . 1 . 5 . . . . 1 . . . . . . . . . . . . . . Maintenance Status 1 | . . . . . . . . . . . 1 . . . . . . . . . . . . . . . . Hauler Manifests 1 | . . . . . . . . . 1 . . . . . . . . . . . . . . . . . . Zone Layout 13 | . . 2 . . . 2 . 2 . . 3 . 2 . . . . . . . . . . . 2 . . Garrison Registry 1 | . . . . . . . . . . . . . . . . . . 1 . . . . . . . . . Patrol Navigation 1 | . . . . . . . . . . . . . . . . . . . . . . 1 . . . . . Security Stations 1 | . . . . . . . . . . 1 . . . . . . . . . . . . . . . . . Proto ID Catalog 1 | . . . . 1 . . . . . . . . . . . . . . . . . . . . . . . Fabricator Hacks 3 | . . . . . . . . . 1 . . . . . . . 2 . . . . . . . . . . Load Schematic 1 | . . . . . . . . . . . . . . . . . 1 . . . . . . . . . . Build 2 | . . . . . . . . . 1 . . . . . . . 1 . . . . . . . . . . Repair Station Hacks 18 | . . . . . . . . 2 7 . 2 . 5 . . . . . . . . . . . 2 . . Scan Component 10 | . . . . . . . . 1 4 . 1 . 3 . . . . . . . . . . . 1 . . Repair 8 | . . . . . . . . 1 3 . 1 . 2 . . . . . . . . . . . 1 . . Recycling Unit Hacks 1 | . . . . . . . . 1 . . . . . . . . . . . . . . . . . . . Report Inventory 1 | . . . . . . . . 1 . . . . . . . . . . . . . . . . . . . Scanalyzer 7 | . . 1 . . . . . . 4 . 1 . . . . . . . . . . . . . 1 . . Insert Component 2 | . . . . . . . . . 2 . . . . . . . . . . . . . . . . . . Analyze 1 | . . . . . . . . . 1 . . . . . . . . . . . . . . . . . . Retrieve Study 4 | . . 1 . . . . . . 1 . 1 . . . . . . . . . . . . . 1 . . Garrison Access Hacks 7 | . . . . . . 1 . 1 1 . 1 . 1 . . . 1 . . . 1 . . . . . . Unlock Access 6 | . . . . . . 1 . . 1 . 1 . 1 . . . 1 . . . 1 . . . . . . Seal Access 1 | . . . . . . . . 1 . . . . . . . . . . . . . . . . . . . Unauthorized Hacks 22 | . . 1 . . . 5 . 4 3 . 2 . 1 . . . 3 . . . . . 1 . 2 . . Terminals 19 | . . 1 . . . 5 . 3 3 . 2 . 1 . . . 1 . . . . . 1 . 2 . . Track 2 | . . . . . . 1 . . . . 1 . . . . . . . . . . . . . . . . Assimilate 6 | . . . . . . . . 1 2 . . . . . . . . . . . . . 1 . 2 . . Botnet 7 | . . 1 . . . 1 . 1 1 . 1 . 1 . . . 1 . . . . . . . . . . Disrupt 1 | . . . . . . . . 1 . . . . . . . . . . . . . . . . . . . Skim 3 | . . . . . . 3 . . . . . . . . . . . . . . . . . . . . . Fabricators 1 | . . . . . . . . . . . . . . . . . 1 . . . . . . . . . . Liberate 1 | . . . . . . . . . . . . . . . . . 1 . . . . . . . . . . Repair Stations . | . . . . . . . . . . . . . . . . . . . . . . . . . . . . Recycling Units 1 | . . . . . . . . 1 . . . . . . . . . . . . . . . . . . . Tunnel 1 | . . . . . . . . 1 . . . . . . . . . . . . . . . . . . . Scanalyzers . | . . . . . . . . . . . . . . . . . . . . . . . . . . . . Garrison Access 1 | . . . . . . . . . . . . . . . . . 1 . . . . . . . . . . Reprogram 1 | . . . . . . . . . . . . . . . . . 1 . . . . . . . . . . Data Cores Recovered 2 | . . . . . . 2 . . . . . . . . . . . . . . . . . . . . . Used 1 | . . . . . . 1 . . . . . . . . . . . . . . . . . . . . . Hacking Detections 89 | . 4 6 1 . 1 6 2 7 9 1 17 1 6 1 2 . 4 1 1 . 1 2 3 . 12 . 1 Full Trace Events 6 | . . . . . . . 1 . . . 1 . 1 1 . . . . . . . . . . 2 . . Feedback Events 1 | . . . . . . . . . . . . . . . . . . . . . . . . . 1 . . Corruption 1 | . . . . . . . . . . . . . . . . . . . . . . . . . 1 . . Feedback Blocked . | . . . . . . . . . . . . . . . . . . . . . . . . . . . . Robot Schematics Acquired 1 | . . . . . . . . . . . . . 1 . . . . . . . . . . . . . . Robots Built . | . . . . . . . . . . . . . . . . . . . . . . . . . . . . Authchips . | . . . . . . . . . . . . . . . . . . . . . . . . . . . . Time . | . . . . . . . . . . . . . . . . . . . . . . . . . . . . Total Robot Build Rating . | . . . . . . . . . . . . . . . . . . . . . . . . . . . . Part Schematics Acquired 2 | . . . . . . . . 1 1 . . . . . . . . . . . . . . . . . . Parts Built 4 | . . . . . . . . . 2 . . . . . . . 2 . . . . . . . . . . Authchips . | . . . . . . . . . . . . . . . . . . . . . . . . . . . . Time 223 | . . . . . . . . . 95 . . . . . . . 128 . . . . . . . . . . Total Part Build Rating 26 | . . . . . . . . . 10 . . . . . . . 16 . . . . . . . . . . Part Studies Acquired 3 | . . 1 . . . . . . 1 . . . . . . . . . . . . . . . 1 . . Parts Repaired 8 | . . . . . . . . 1 3 . 1 . 2 . . . . . . . . . . . 1 . . Time 299 | . . . . . . . . 32 108 . 28 . 100 . . . . . . . . . . . 31 . . Parts Recycled . | . . . . . . . . . . . . . . . . . . . . . . . . . . . . Recycled Matter . | . . . . . . . . . . . . . . . . . . . . . . . . . . . . Retrieved Matter . | . . . . . . . . . . . . . . . . . . . . . . . . . . . . Retrieved Components . | . . . . . . . . . . . . . . . . . . . . . . . . . . . . Parts Scanalyzed 1 | . . . . . . . . . 1 . . . . . . . . . . . . . . . . . . Part Schematics Acquired 1 | . . . . . . . . . 1 . . . . . . . . . . . . . . . . . . Parts Damaged . | . . . . . . . . . . . . . . . . . . . . . . . . . . . . Bothacking | -11 -10 -9 -9 -9 -8 -8 -8 -8 -7 -7 -7 -7 -6 -6 -6 -6 -5 -5 -4 -4 -4 -4 -3 -3 -2 -2 -1 ------------ Run | Yrd Mat Mat Min Exi Min Mat Gar Sto Fac Gar Fac Gar Fac Gar Fac DSF Fac Gar Fac Was Fac Gar Res DSF Res Tes Acc Used RIF Installer 5 | . . . . . . . 1 . . 1 . . . 1 . . . 1 . . . 1 . . . . . Coupler Efficiency 1 | . . . . . . . . . . . . . . . . . . . . . . 1 . . . . . Hotswap 1 | . . . . . . . . . . . . . . 1 . . . . . . . . . . . . . Threat Obfuscator 1 | . . . . . . . . . . . . . . . . . . 1 . . . . . . . . . Signal Jammer 1 | . . . . . . . . . . 1 . . . . . . . . . . . . . . . . . Robots Hacked 48 | . . . . . . . . . . 2 3 5 1 5 . 5 . 4 . 6 2 3 . 3 9 . . Non-combat 8 | . . . . . . . . . . . 3 2 . . . . . . . . 2 . . . 1 . . Combat 40 | . . . . . . . . . . 2 . 3 1 5 . 5 . 4 . 6 . 3 . 3 8 . . Robot Hacks Applied 52 | . . . . . . . . . . 2 3 6 1 5 . 6 . 4 . 6 2 3 . 5 9 . . parse_system 4 | . . . . . . . . . . . 2 1 . . . . . . . . 1 . . . . . . find_station 1 | . . . . . . . . . . . 1 . . . . . . . . . . . . . . . . block_reporting 1 | . . . . . . . . . . . . . . . . . . . . . 1 . . . . . . ignore_targets 6 | . . . . . . . . . . . . . . . . . . . . 6 . . . . . . . spike_heat 1 | . . . . . . . . . . . . . . . . . . . . . . . . 1 . . . amplify_resonance 18 | . . . . . . . . . . . . 1 . 2 . 3 . 3 . . . 2 . 1 6 . . disable_weapons 2 | . . . . . . . . . . . . . . . . 1 . . . . . . . 1 . . . go_dormant 1 | . . . . . . . . . . . . . . 1 . . . . . . . . . . . . . formatsys_low 2 | . . . . . . . . . . . . 2 . . . . . . . . . . . . . . . formatsys_high 16 | . . . . . . . . . . 2 . 2 1 2 . 2 . 1 . . . 1 . 2 3 . . Relay Couplers Released 84 | . . . . . . . 5 2 . 13 . 24 . 17 . . . 10 . . . 13 . . . . . Machine Destruction 84 | . . . . . . . 5 2 . 13 . 24 . 17 . . . 10 . . . 13 . . . . . Attached 22 | . . . . . . . . . . 2 . 7 . 3 . . . 5 1 1 . 1 . . 2 . . Fabnet Peak Effective % . | . . . . . . . . . . . . . . . . . . . . . . . . . . . . Robots Rewired 4 | . . . . . . . . . . 3 . 1 . . . . . . . . . . . . . . . Allies Hacked 5 | . . . . . . . . . . . . . . . . . 3 . . . . . . . 2 . . Hacks Repelled . | . . . . . . . . . . . . . . . . . . . . . . . . . . . . Allies | -11 -10 -9 -9 -9 -8 -8 -8 -8 -7 -7 -7 -7 -6 -6 -6 -6 -5 -5 -4 -4 -4 -4 -3 -3 -2 -2 -1 -------- Run | Yrd Mat Mat Min Exi Min Mat Gar Sto Fac Gar Fac Gar Fac Gar Fac DSF Fac Gar Fac Was Fac Gar Res DSF Res Tes Acc Total Allies 35 | . . . 3 . . . . 1 2 7 . 5 1 2 . 2 3 1 . . . 1 1 2 4 . . Largest Group 6 | . . . 3 2 2 . . 1 2 6 4 2 1 1 . 1 3 1 . . . 1 1 3 2 . . Highest-Rated Group 317 | . . . 40 32 32 . . 10 36 317 303 57 32 41 . 32 87 41 . . . 47 10 115 82 . . Highest-Rated Ally 95 | . . . 16 16 16 . . 10 26 95 95 32 32 41 . 32 29 41 . . . 47 10 56 64 . . Total Orders 36 | . . . . . . . . 3 10 13 1 4 . 2 . . . . . . . . . 2 1 . . STAY 16 | . . . . . . . . . 5 7 1 . . 1 . . . . . . . . . 1 1 . . FOLLOW 12 | . . . . . . . . . 5 6 . . . . . . . . . . . . . 1 . . . GUARD 1 | . . . . . . . . . . . . . . 1 . . . . . . . . . . . . . AID 4 | . . . . . . . . . . . . 4 . . . . . . . . . . . . . . . EXPLORE 2 | . . . . . . . . 2 . . . . . . . . . . . . . . . . . . . RETURN 1 | . . . . . . . . 1 . . . . . . . . . . . . . . . . . . . Ally Attacks 131 | . . . 10 . 8 . . . . 15 35 17 2 17 . 7 1 1 . . . 5 . 2 11 . . Total Damage 4027 | . . . 115 . 88 . . . . 592 1285 367 68 653 . 241 22 17 . . . 116 . 43 420 . . Kills 33 | . . . 1 . 3 . . . . 2 16 6 . 2 . . . . . . . 1 . . 2 . . Allies Corrupted . | . . . . . . . . . . . . . . . . . . . . . . . . . . . . Allies Melted 1 | . . . . . . . . . . . 1 . . . . . . . . . . . . . . . . Intel | -11 -10 -9 -9 -9 -8 -8 -8 -8 -7 -7 -7 -7 -6 -6 -6 -6 -5 -5 -4 -4 -4 -4 -3 -3 -2 -2 -1 ------- Run | Yrd Mat Mat Min Exi Min Mat Gar Sto Fac Gar Fac Gar Fac Gar Fac DSF Fac Gar Fac Was Fac Gar Res DSF Res Tes Acc Active Infowar (turns) 18542 | 29 684 998 . . . 1265 210 . 1933 1934 2873 1770 893 526 . . 582 969 150 148 717 1379 557 . 497 199 229 Optics 10218 | . . . . . . . . . 1933 1934 2873 1770 592 . . . . 714 150 148 104 . . . . . . Structural 2819 | . 366 . . . . 1264 46 . 1074 69 . . . . . . . . . . . . . . . . . Traps 164 | . . . . . . . 164 . . . . . . . . . . . . . . . . . . . . Seismic 1346 | 29 318 998 . . . 1 . . . . . . . . . . . . . . . . . . . . . T.N.C. 1 | . . . . . . . . . . . . . . . . . . . . . . . . . 1 . . Cloaking 357 | . . . . . . . . . . . . . . . . . . . . . . . . . 158 199 . Jamming 5106 | . . . . . . . . . . . . . 301 526 . . 582 255 74 148 717 1379 557 . 338 . 229 Robot Analysis Total . | . . . . . . . . . . . . . . . . . . . . . . . . . . . . Derelict Logs Recovered 1 | . . . 1 . . . . . . . . . . . . . . . . . . . . . . . . Drone Launches 3 | . . . . . . . . 3 . . . . . . . . . . . . . . . . . . . Drone Recoveries 2 | . . . . . . . . 2 . . . . . . . . . . . . . . . . . . . Exploration | -11 -10 -9 -9 -9 -8 -8 -8 -8 -7 -7 -7 -7 -6 -6 -6 -6 -5 -5 -4 -4 -4 -4 -3 -3 -2 -2 -1 ------------- Run | Yrd Mat Mat Min Exi Min Mat Gar Sto Fac Gar Fac Gar Fac Gar Fac DSF Fac Gar Fac Was Fac Gar Res DSF Res Tes Acc Turns Passed 30776 | 247 1414 1357 1122 661 691 1269 495 1524 1965 1934 2873 1770 895 1998 143 733 757 1301 150 148 717 1379 584 388 3243 275 743 Spaces Moved 16265 | 149 949 729 727 435 459 733 285 828 1225 1051 1415 766 381 927 72 299 404 548 93 90 372 711 318 120 1569 192 418 Core 175 | 2 . . . . . . . . . . . . . 8 . . . . . . . . . . . 44 121 Treads 8248 | 55 . . . . . . . 50 . 936 1415 766 381 170 . . 259 548 93 90 372 711 318 70 1569 148 297 Legs 1373 | . 58 . . . . . . . . . . . . 749 72 299 145 . . . . . . 50 . . . Wheels 6469 | 92 891 729 727 435 459 733 285 778 1225 115 . . . . . . . . . . . . . . . . . Hover . | . . . . . . . . . . . . . . . . . . . . . . . . . . . . Flight . | . . . . . . . . . . . . . . . . . . . . . . . . . . . . Fastest Speed 50 | 50 95 85 150 150 110 110 110 110 105 105 165 160 166 112 187 112 153 151 151 151 145 145 152 140 145 50 50 Average Speed 145 | 118 118 126 150 150 132 112 123 131 122 155 165 164 176 164 187 172 166 178 151 151 151 151 152 191 145 123 127 Slowest Speed 1250 | 160 260 150 150 150 150 165 165 400 155 240 165 165 240 1250 187 190 190 233 151 151 225 225 152 360 185 145 950 Overloaded Moves . | . . . . . . . . . . . . . . . . . . . . . . . . . . . . Propulsion Burnouts . | . . . . . . . . . . . . . . . . . . . . . . . . . . . . Robots Hopped 2 | . . . . . . . . . . . . . . 2 . . . . . . . . . . . . . Potential Cave-ins 6 | . . . . . . . . . . 3 . . . 3 . . . . . . . . . . . . . Cave-ins Triggered . | . . . . . . . . . . . . . . . . . . . . . . . . . . . . Time Travels 1 | . . . . . . . . . 1 . . . . . . . . . . . . . . . . . . Exploration Rate (%) 51 | 10 99 77 100 78 94 58 39 88 24 85 52 70 16 72 2 93 7 51 3 84 11 67 12 75 29 31 12 Regions Visited 27 Branch Regions 5 Pre-discovered Areas 1 | . . . . . . . . 1 . . . . . . . . . . . . . . . . . . . Known Exits Taken 9 | . . . . . 1 1 . . 1 . 1 . 1 . 1 . 1 . . . 1 . 1 . . . . Unknown Exits Taken 8 | 1 1 1 1 1 . . . 1 . . . . . . . . . . . . . . . . 1 1 . Scrap Searched 3 | . . . 1 . 2 . . . . . . . . . . . . . . . . . . . . . . Spaces Dug 187 | . . 14 . . . 11 . 10 17 . 39 . 11 9 1 . 8 4 . . 1 5 6 . 36 9 6 Terrain Destroyed 892 | . 63 138 3 . 77 28 72 17 19 41 39 19 29 70 1 26 8 7 . . 16 19 11 9 165 9 6 Melee 129 | . . 14 . . . 7 . 10 12 . 39 . 11 7 1 . 8 . . . 1 5 6 . 6 2 . Projectile 247 | . . 5 3 . 1 16 . . 7 . . 1 1 4 . 8 . 7 . . 12 13 5 9 142 7 6 AOE 516 | . 63 119 . . 76 5 72 7 . 41 . 18 17 59 . 18 . . . . 3 1 . . 17 . . Terrain Rammed . | . . . . . . . . . . . . . . . . . . . . . . . . . . . . Walls Destroyed . | . . . . . . . . . . . . . . . . . . . . . . . . . . . . Machines Disabled . | . . . . . . . . . . . . . . . . . . . . . . . . . . . . Actions | -11 -10 -9 -9 -9 -8 -8 -8 -8 -7 -7 -7 -7 -6 -6 -6 -6 -5 -5 -4 -4 -4 -4 -3 -3 -2 -2 -1 --------- Run | Yrd Mat Mat Min Exi Min Mat Gar Sto Fac Gar Fac Gar Fac Gar Fac DSF Fac Gar Fac Was Fac Gar Res DSF Res Tes Acc Total 21059 | 181 1105 953 743 444 514 1034 360 1105 1618 1249 1753 1109 554 1233 80 440 474 784 106 101 461 915 391 238 2300 214 600 Wait 2187 | . 21 7 . 1 31 180 18 84 320 38 149 199 116 99 3 23 45 117 . . 40 77 35 41 405 . 138 Move 16229 | 148 948 728 726 434 458 732 283 827 1224 1049 1414 764 380 921 71 298 403 546 93 89 371 709 317 119 1568 191 418 Hop 2 | . . . . . . . . . . . . . . 2 . . . . . . . . . . . . . Pick Up 218 | 7 21 19 . 1 . 17 2 20 6 13 8 3 4 18 . 18 5 10 3 1 2 8 3 8 16 1 4 Fast Attach 157 | 7 4 7 2 . . 3 . 19 5 3 6 4 7 9 . 9 2 13 2 . 3 8 4 7 15 1 17 Attach 104 | . 1 6 . . 5 4 5 6 2 2 3 4 5 15 2 8 1 6 2 1 . 5 2 3 14 . 2 Detach 62 | . 3 2 . . . 1 . 4 . 3 2 4 5 5 1 4 . 5 2 1 2 3 2 2 9 1 1 Swap 320 | 1 17 35 4 3 2 12 10 20 9 24 23 13 7 27 1 10 3 16 . 2 5 8 5 8 55 . . Drop 239 | 1 16 31 2 2 . 14 2 26 6 16 12 1 1 11 1 14 5 13 4 1 4 12 4 13 23 4 . Fire 1190 | 17 73 85 8 . 18 64 32 70 29 52 83 106 16 84 . 47 . 48 . 6 30 73 9 35 180 10 15 Melee 257 | . 1 33 1 . . 7 . 29 17 20 53 11 13 12 1 . 10 6 . . 4 12 10 . 13 4 . Ram 7 | . . . . . . . . . . . . . . . . . . . . . . . . . . 2 5 Kick 1 | . . . . . . . . . . . . . . . . 1 . . . . . . . . . . . Crush 2 | . . . . . . . . . . . . . . . . . . . . . . . . . 2 . . Escape Stasis 49 | . . . . . . . 8 . . . . . . 30 . 7 . 4 . . . . . . . . . Rewire 35 | . . . . 3 . . . . . 29 . . . . . 1 . . . . . . . 2 . . . Trap . | . . . . . . . . . . . . . . . . . . . . . . . . . . . . Miscellaneous . | . . . . . . . . . . . . . . . . . . . . . . . . . . . . Route ------- -11/Scrapyard -10/Materials (discovered 5 exits: *Mat x3 / [*Min] / [*Sub]) -9/Materials (discovered 3 exits: *Mat x2 / *Min) -9/Mines (discovered 4 exits: *Mat x2 / *Exi / [*Zio]) -9/Exiles (discovered 2 exits: *Min x2) -8/Mines (discovered 2 exits: *Mat x2) -8/Materials (discovered 5 exits: *Fac x2 / *Sto x2 / Gar) -8/Garrison -8/Storage -7/Factory (discovered 5 exits: *Fac x4 / Gar) -7/Garrison (discovered 3 exits: *Fac x3) -7/Factory (discovered 3 exits: *Fac x2 / Gar) -7/Garrison -6/Factory -6/Garrison (discovered 3 exits: *Fac x3) -6/Factory -6/DSF -5/Factory -5/Garrison (discovered 3 exits: *Fac x3) -4/Factory -4/Waste -4/Factory (discovered 2 exits: Gar / DSF) -4/Garrison (discovered 2 exits: *Res x2) -3/Research -3/DSF -2/Research (discovered 2 exits: *Acc / [*Tes]) -2/Testing -1/Access History --------- Turn | Location | Event 12 | -11/Scrapyard | Discovered new exit (range 16) 248 | -11/Scrapyard | Entered Materials 323 | -10/Materials | Build established: Mutant 475 | -10/Materials | Discovered new exit (range 5) 561 | -10/Materials | Discovered new exit (range 9) 985 | -10/Materials | Discovered new exit (range 16) 1060 | -10/Materials | Core integrity fell below 50% 1151 | -10/Materials | Discovered new exit (range 10) 1255 | -10/Materials | Discovered new exit (range 6) 1662 | -10/Materials | Entered another Materials area 1662 | -9/Materials | Evolved 2 slots: Propulsion x2 1786 | -9/Materials | Central database locked down 2020 | -9/Materials | Build established: Scavenger-Mutant 2052 | -9/Materials | Discovered new exit (range 15) 2280 | -9/Materials | Discovered new exit (range 16) 2365 | -9/Materials | Identified exit to Materials 2539 | -9/Materials | Build established: Mutant 2685 | -9/Materials | Discovered exit to Materials (range 10) 3019 | -9/Materials | Entered Mines 3034 | -9/Mines | A Derelict revealed a hidden shortcut to a safe place 3079 | -9/Mines | Assembled infested the area 3248 | -9/Mines | Assisted by bots powering up and referring to "LRC-V3" 3322 | -9/Mines | A weapon hastily lodged in a ceiling crevice suddenly fell to the ground 3470 | -9/Mines | Discovered exit to Materials (range 6) 3646 | -9/Mines | Learned Materials emergency access door positions 3724 | -9/Mines | Discovered exit to Materials (range 10) 3772 | -9/Mines | Discovered new exit (range 5) 3832 | -9/Mines | Received a Rocket Launcher from a helpful Derelict 4141 | -9/Mines | Entered Exiles 4141 | -9/Exiles | Accompanied by 2 allies 4161 | -9/Exiles | Discovered new exit (range 15) 4183 | -9/Exiles | Met 8R-AWN 4206 | -9/Exiles | Met EX-HEX 4299 | -9/Exiles | Met EX-DEC 4333 | -9/Exiles | Visited The Gauntlet 4471 | -9/Exiles | Discovered new exit (range 10) 4570 | -9/Exiles | Met EX-BIN 4597 | -9/Exiles | Aligned with FarCom system 4599 | -9/Exiles | Given EX-Vault access code 4638 | -9/Exiles | Opened EX-Vault 4664 | -9/Exiles | Found Chronowheel 4695 | -9/Exiles | Warned to stay clear of 0b10 Research branches 4802 | -9/Exiles | Left Exiles lab with Chronowheel 4802 | -9/Exiles | Entered Mines 4802 | -8/Mines | Accompanied by 2 allies 5151 | -8/Mines | Discovered exit to Materials (range 15) 5254 | -8/Mines | Lost 6 parts (4n1u1w) 5302 | -8/Mines | Discovered exit to Materials (range 11) 5493 | -8/Mines | Entered Materials 5493 | -8/Materials | Evolved 2 slots: Utility x1, Weapon x1 5549 | -8/Materials | Identified exit to Storage 6094 | -8/Materials | Build established: Scavenger-Mutant 6185 | -8/Materials | Discovered new exit (range 5) 6596 | -8/Materials | Discovered new exit (range 11) 6760 | -8/Materials | Identified exit to Garrison 6762 | -8/Materials | Entered Garrison 6787 | -8/Garrison | Installed Relay Interface Framework 6852 | -8/Garrison | Triggered checkpoint 7138 | -8/Garrison | Discovered exit to Storage (range 9) 7181 | -8/Garrison | Triggered checkpoint 7184 | -8/Garrison | Spotted B-75 Beast 7257 | -8/Garrison | Entered Storage 7282 | -8/Storage | Lost 9 parts (1p3n3u2w) 7368 | -8/Storage | Garrison activated, responded to threat 7456 | -8/Storage | Lost 4 parts (1p2n1w) 7728 | -8/Storage | Repaired Arm. Wheel 7946 | -8/Storage | Core integrity fell below 50% 8015 | -8/Storage | Found Prototype Protection 8015 | -8/Storage | Identified Lgt. Regenerative Plating 8266 | -8/Storage | Discovered new exit (range 15) 8781 | -8/Storage | Entered Factory 8781 | -7/Factory | Evolved 2 slots: Utility x2 8781 | -7/Factory | Activated Chronowheel 8781 | -7/Factory | Spacetime reconverged on an earlier point 9041 | -7/Factory | Identified exit to Factory 9100 | -7/Factory | Central database locked down 9226 | -7/Factory | Fabricated Force Field (x2) 9529 | -7/Factory | Build established: Scavenger-Assassin 9899 | -7/Factory | Repaired Katana 10383 | -7/Factory | Repaired Arm. Wheel+ 10422 | -7/Factory | Repaired Hrd. Medium Armor Plating 10611 | -7/Factory | Build established: Scavenger-Skirmisher 10725 | -7/Factory | Identified exit to Garrison 10746 | -7/Factory | Entered Garrison 10746 | -7/Garrison | Accompanied by 1 ally 10826 | -7/Garrison | Garrison Relay disabled 10924 | -7/Garrison | Triggered checkpoint 10960 | -7/Garrison | Garrison Relay disabled 11106 | -7/Garrison | Triggered checkpoint 11178 | -7/Garrison | Triggered checkpoint 11229 | -7/Garrison | Heavy support dispatched to Factory 11325 | -7/Garrison | Triggered checkpoint 11331 | -7/Garrison | Triggered checkpoint 11381 | -7/Garrison | Destroyed 13 combat bots 11447 | -7/Garrison | Discovered new exit (range 16) 11753 | -7/Garrison | Found embedded Infiltrators 11843 | -7/Garrison | Discovered new exit (range 10) 11939 | -7/Garrison | Learned Factory security intel 12045 | -7/Garrison | Garrison Relay disabled 12050 | -7/Garrison | Triggered checkpoint 12163 | -7/Garrison | Heavy support dispatched to Factory 12204 | -7/Garrison | H-XX Assembler disabled 12471 | -7/Garrison | Discovered new exit (range 16) 12508 | -7/Garrison | Expanded RIF knowledge: Signal Jamming 12680 | -7/Garrison | Entered Factory 12680 | -7/Factory | Accompanied by 4 allies 12722 | -7/Factory | Build established: Mutant 13062 | -7/Factory | Discovered exit to Factory (range 19) 14112 | -7/Factory | Noticed a derelict Sapper rigging charges 14280 | -7/Factory | First assault squad dispatched 15265 | -7/Factory | Repaired Hvy. Treads 15276 | -7/Factory | Discovered exit to Factory (range 20) 15549 | -7/Factory | Identified exit to Garrison 15553 | -7/Factory | Entered Garrison 15558 | -7/Garrison | Triggered checkpoint 15739 | -7/Garrison | Triggered checkpoint 15752 | -7/Garrison | Garrison Relay disabled 16223 | -7/Garrison | Triggered checkpoint 16273 | -7/Garrison | Build established: Bothacker-Tank 16416 | -7/Garrison | Discovered exit to Factory (range 10) 16493 | -7/Garrison | Triggered checkpoint 16516 | -7/Garrison | System corruption reached 10% 16649 | -7/Garrison | Garrison Relay disabled 16649 | -7/Garrison | Garrison Relay disabled 16669 | -7/Garrison | Garrison Relay disabled 16674 | -7/Garrison | Garrison Relay disabled 16819 | -7/Garrison | Triggered checkpoint 16899 | -7/Garrison | Triggered checkpoint 16946 | -7/Garrison | Garrison Relay disabled 16961 | -7/Garrison | Build established: Bothacker-Mutant 17174 | -7/Garrison | Core integrity fell below 50% 17323 | -7/Garrison | Entered Factory 17323 | -6/Factory | Evolved 2 slots: Power x1, Utility x1 17481 | -6/Factory | Repaired Hvy. Treads 17527 | -6/Factory | Repaired Gauss Rifle 17673 | -6/Factory | First assault squad dispatched 18208 | -6/Factory | Identified exit to Garrison 18218 | -6/Factory | Entered Garrison 18346 | -6/Garrison | Triggered checkpoint 18413 | -6/Garrison | Garrison Relay disabled 18697 | -6/Garrison | Spotted B-75 Beast 18706 | -6/Garrison | Triggered checkpoint 18726 | -6/Garrison | Destroyed B-75 Beast 18730 | -6/Garrison | Triggered checkpoint 18741 | -6/Garrison | Triggered checkpoint 18794 | -6/Garrison | Lost 8 parts (2p3n1u2w) 19119 | -6/Garrison | Discovered new exit (range 13) 19393 | -6/Garrison | Discovered new exit (range 13) 19515 | -6/Garrison | Discovered new exit (range 13) 19562 | -6/Garrison | Build established: Scavenger-Skirmisher 19566 | -6/Garrison | Triggered checkpoint 19616 | -6/Garrison | Garrison Relay disabled 19688 | -6/Garrison | Triggered checkpoint 19782 | -6/Garrison | Triggered checkpoint 19836 | -6/Garrison | Triggered checkpoint 19873 | -6/Garrison | Build established: Scavenger-Gunner 19877 | -6/Garrison | Lost 3 parts (1n2w) 19877 | -6/Garrison | Garrison Relay disabled 20106 | -6/Garrison | Garrison Relay disabled 20122 | -6/Garrison | Triggered checkpoint 20179 | -6/Garrison | Expanded RIF knowledge: Hotswap 20216 | -6/Garrison | Entered Factory 20357 | -6/Factory | Core integrity fell below 50% 20357 | -6/Factory | Identified exit to DSF 20359 | -6/Factory | Entered DSF 20399 | -6/DSF | Found Hvy. Reflective Plating 20403 | -6/DSF | Additional patrols routed to DSF 20470 | -6/DSF | Lost 3 parts (1n1u1w) 20505 | -6/DSF | Build established: Bothacker-Mutant 20830 | -6/DSF | Discovered new exit (range 16) 21038 | -6/DSF | Sterilization system engaged 21058 | -6/DSF | Ambient heat levels rising (+10) 21073 | -6/DSF | Ambient heat levels rising (+10) 21088 | -6/DSF | Ambient heat levels rising (+10) 21092 | -6/DSF | Entered Factory 21092 | -5/Factory | Evolved 2 slots: Propulsion x1, Utility x1 21199 | -5/Factory | Build established: Gunner 21363 | -5/Factory | Fabricated Biometal Medium Treads? 21491 | -5/Factory | Identified exit to Garrison 21849 | -5/Factory | Entered Garrison 21905 | -5/Garrison | Triggered checkpoint 22139 | -5/Garrison | Garrison Relay disabled 22301 | -5/Garrison | Triggered checkpoint 22361 | -5/Garrison | Destroyed 7 combat bots 22377 | -5/Garrison | System corruption reached 10% 22407 | -5/Garrison | Lost 5 parts (5u) 22524 | -5/Garrison | Discovered new exit (range 14) 22622 | -5/Garrison | Triggered checkpoint 22672 | -5/Garrison | Garrison Relay disabled 22713 | -5/Garrison | Discovered new exit (range 80) 22713 | -5/Garrison | Discovered new exit (range 83) 22713 | -5/Garrison | Discovered new exit (range 18) 23009 | -5/Garrison | Expanded RIF knowledge: Threat Obfuscation 23084 | -5/Garrison | Garrison Relay disabled 23150 | -5/Garrison | Entered Factory 23150 | -4/Factory | Evolved 2 slots: Utility x1, Weapon x1 23300 | -4/Factory | Sucked down chute 23300 | -4/Factory | Entered Waste 23315 | -4/Waste | EMP discharged 23322 | -4/Waste | Spotted C-40 Crusher 23352 | -4/Waste | Spotted C-40 Crusher 23369 | -4/Waste | Spotted C-40 Crusher 23375 | -4/Waste | Spotted C-40 Crusher 23382 | -4/Waste | Spotted C-40 Crusher 23404 | -4/Waste | Spotted C-40 Crusher 23415 | -4/Waste | EMP discharged 23415 | -4/Waste | System corruption reached 10% 23433 | -4/Waste | Discovered new exit (range 11) 23448 | -4/Waste | Entered Factory 23494 | -4/Factory | Build established: Bothacker-Tank 23737 | -4/Factory | Identified exit to DSF 24163 | -4/Factory | Identified exit to Garrison 24165 | -4/Factory | Entered Garrison 24393 | -4/Garrison | Garrison Relay disabled 24526 | -4/Garrison | Triggered checkpoint 24579 | -4/Garrison | Spotted B-86 Titan 24668 | -4/Garrison | Destroyed B-86 Titan 24744 | -4/Garrison | Triggered checkpoint 24775 | -4/Garrison | Triggered checkpoint 24784 | -4/Garrison | Destroyed 10 combat bots 24815 | -4/Garrison | Triggered checkpoint 24852 | -4/Garrison | Discovered new exit (range 10) 24867 | -4/Garrison | Triggered checkpoint 24896 | -4/Garrison | Garrison Relay disabled 24963 | -4/Garrison | Expanded RIF knowledge: Coupler Efficiency 25061 | -4/Garrison | Triggered checkpoint 25078 | -4/Garrison | Discovered new exit (range 15) 25139 | -4/Garrison | Triggered checkpoint 25143 | -4/Garrison | Garrison Relay disabled 25544 | -4/Garrison | Entered Research 25544 | -3/Research | Evolved 2 slots: Propulsion x1, Utility x1 25794 | -3/Research | First assault squad dispatched 26069 | -3/Research | Identified exit to DSF 26105 | -3/Research | Found Prototype Hackware 26105 | -3/Research | Identified Exp. System Shield 26128 | -3/Research | Entered DSF 26128 | -3/DSF | Accompanied by 1 ally 26173 | -3/DSF | Additional patrols routed to DSF 26465 | -3/DSF | Discovered new exit (range 15) 26477 | -3/DSF | Sterilization system engaged 26477 | -3/DSF | Destroyed 7 combat bots 26497 | -3/DSF | Ambient heat levels rising (+10) 26512 | -3/DSF | Ambient heat levels rising (+10) 26516 | -3/DSF | Entered Research 26516 | -2/Research | Accompanied by 2 allies 26516 | -2/Research | Evolved 2 slots: Power x1, Utility x1 26686 | -2/Research | Discovered new exit (range 15) 26849 | -2/Research | P-80 Master assimilated allied Assassin 8b 27601 | -2/Research | System corruption reached 10% 28082 | -2/Research | Build established: Tank 28570 | -2/Research | Repaired Broken Adv. Force Field 28841 | -2/Research | Discovered new exit (range 13) 29266 | -2/Research | First assault squad dispatched 29354 | -2/Research | Found Imp. Powered Armor 29466 | -2/Research | System corruption reached 30% 29497 | -2/Research | Lost 3 parts (2u1w) 29504 | -2/Research | Destroyed 7 combat bots 29759 | -2/Research | Entered Testing 29760 | -2/Testing | Maximum security lockdown engaged 29944 | -2/Testing | Spotted PY-I95OA8H1DH 30010 | -2/Testing | Released all parts (12) 30025 | -2/Testing | Discovered new exit (range 15) 30031 | -2/Testing | Core integrity fell below 50% 30034 | -2/Testing | Entered Access 30034 | -1/Access | Evolved 2 slots: Utility x1, Weapon x1 30284 | -1/Access | First assault squad dispatched 30311 | -1/Access | Build established: Mutant 30515 | -1/Access | Found Powered Armor 30527 | -1/Access | Found Powered Armor 30537 | -1/Access | Found Powered Armor 30548 | -1/Access | Found Powered Armor 30717 | -1/Access | Core integrity fell below 50% 30741 | -1/Access | Lost 13 parts (3p2n5u3w) 30758 | -1/Access | Core integrity fell below 20% 30776 | -1/Access | Spotted B-99 Colossus 30776 | -1/Access | Spotted B-99 Colossus 30777 | -1/Access | Destroyed by B-99 Colossus with Linear Accelerator Last Messages --------------- 30719_ Slug penetrates Wall. 30730_ Triggered Alarm Trap. 30730_ RIF jams signal. 30743_ Connecting with Terminal... 30743_ Current location identified: Access 30747_ ALERT: Potential suspicious activity detected, Programmers report to Access Zone 1S. 30756_ C-30 ARC bursts open, deploying its payload. 30756_ L-61 Swordsman unfolds itself. 30756_ G-73 Enforcer unfolds itself. 30756_ Broken Adv. Target Analyzer destroyed. 30756_ Critical hit (Blast). 30768_ Slammed into S-43 Plague. 30768_ Destabilizing: System corrupted (+1). 30769_ Slammed into S-43 Plague. 30772_ S-43 Plague suffers critical hit (Burn). 30776_ Penetrated by Slug. [Achievement: 40k Club] Map ----- +----------------------------------------------------+ | ?????????????????????????????????????????????????? | | ?????????????????????????????????????????????????? | | ?????????????????????????????????????????????????? | | ?????????????????????????????????????????????????? | | ?????????????????????????????????????????????????? | | ?????????????????????????????????????????????????? | | ?????????????????????????????????????????????????? | | ?????????????????????????????????????????????????? | | ?????????????????????????????????????????????????? | | ?????????????????????????????????????????????????? | | ?????????????????????????????????????????????????? | | ?????????????????????????????????????????????????? | | ?????????????????????????????????????????????????? | | ?????????????????????????????????????????????????? | | ?????????????????????????????????????????????????? | | ?????????????????????????????????????????????????? | | ?????????????????????????????????????????????????? | | ?????????????????????????????????????????????????? | | ???????????????????????????????????# ####### | | ??????????????######???????????????# / | | ??????????????" ??????????????# ###### | | ??????????????" BB ?????????????????????######+ | | ??????????????" BB ###+####?????????????# | | ??????????????" #?????????????# | | ??????????????" #?????????????# "" | | ??????????????" @ ###???????????# "" | | ??????????????" % ; #???????????# "" | | ??????????????" BB ### ###???????????# T | | ??????????????" BB ????# #??? ????????# "" | | ??????????????" ??????# #?## #???p?#?# "" | | ??????????????##????????#s #?# ??p?? # "" | | ????????????????????????#s ^ #?# ???? # | | ????????????????????????#s #?# ?? + | | ?????????################ #?# " # | | ?????????# # #?# """ # | | ?????????# # #?# """ # | | ?????????# # s #?# " ###/### | | ?????????# +l #?# | | ?????????# # #?# | | ?????????# # #?# | | ?????????################ p #?# | | ????????????????????????# #?# #############+ | | ????????????????????????# g #?# % #??????# ! | | ????????????????????????# ### ######## | | ????????????????????????+ # | | ????????????????????????# # | | ????????????????????????# / | | ????????????????????????# # | | ????????????????????????######## ###### # | | ???????????????????????????????# #????# # | +----------------------------------------------------+ Best States ------------- Heat Dissipation 87 Energy Generation 77 Energy Capacity 650 Matter Stores 300 Matter Capacity 300 Sight Range 22 Terrain Scan Density 10 Jamming Range 16 Cloak Strength 2 Power Amplification 20 Additional Mass Support 9 Armor Coverage 2000 Utility Shielding 66 Weapon Cycling 25 Phase Shifting 15 Evasion (%) 55 Targeting Accuracy 8 Target Analysis 12 Recoil Reduction 6 Particle Charging 15 Kinecelleration 30 Offensive Hacking 10 Defensive Hacking 26 Relay Coupler Types 3 Relay Coupler Value 71 Authchip Count 3 Item Schematics ----------------- Arm. Treads | -8/Storage | Hacked Hrd. Medium Armor Plating | -7/Factory | Scanalyzed Robot Schematics ------------------ M-28 Smith | -6/Factory | Hacked Fabricated ------------ Force Field | x2 | -7/Factory | Preloaded Biometal Medium Treads | x2 | -5/Factory | Preloaded Repaired ---------- Arm. Wheel | 19% | -8/Storage Katana | 70% | -7/Factory Arm. Wheel | 56% | -7/Factory Hrd. Medium Armor Plating | 70% | -7/Factory Hvy. Treads | 1% | -7/Factory Hvy. Treads | 8% | -6/Factory Gauss Rifle | 2% | -6/Factory Adv. Force Field | 64% | -2/Research | Broken Studied --------- Wheel | -9/Materials | Hacked Arm. Wheel | -7/Factory | Hacked Biometal Heavy Treads | -2/Research | Hacked Alien Tech Used ----------------- None Achievements -------------- 40k Club All Kinds Of Bad News Analysis Probe Assimilation Complete Can't Touch This For Science! Hack The Planet Hornet's Nest Hot Goods Immobile And Lovin' It Infiltrator Join The Dark Side Let Me Out Of Here Mindtrick More Power To You No Signal Oppo Buddy Satisfying Spacetime Is Relative Taming Of The Crushers Tank Life Treasure Hunter Versatile Window Shopping You Will Be Upgraded Challenges ------------ None Game ------ Seed DeliveryTimingShell Manual? 0 Play Time 11:17:05 Cumulative 88.7 hours Start 2026.01.23 @ 17:50:56 End 2026.01.29 @ 13:44:08 Sessions 23 Manual Loads 0 Difficulty Rogue Special Mode None Game No. 22 Rogue 22 Adventurer 0 Explorer 0 Win Type - Total 1 Types 1/0/0/0/0/0/0/0/0/0 Lore% 27 Gallery% 39 Achievement% 34 Wizard Run 0 Options --------- Layout 2 ASCII 0 Keyboard 1 Movement Numpad Keybinds 0 Fullscreen 1 Font 32/SmallcapsGlow Map View 50x44 Zoom Use 0% Tactical HUD 1 Map Filters NONE Filters NONE Steam 1 RUN: c048cdcf-4efc-436a-9ab7-8a2bcfdd5397